bitfinex-derivatives/quotes_BTCF0:USTF0_20210105
["timestamp","ask_amount","ask_price","bid_price","bid_amount"]
[1609826692730,0.13632608,30546.0,30533.0,0.13632608]
[1609826692930,0.25974608,30546.0,30533.0,0.13632608]
[1609826693129,0.12342,30546.0,30533.0,0.13632608]
[1609826694833,0.10606,30554.0,30545.0,0.13632608]
[1609826695234,0.10606,30554.0,30523.0,4.739]
[1609826696039,0.09194,30562.0,30523.0,4.739]
[1609826696741,0.09194,30562.0,30561.0,0.13632608]
[1609826697140,0.6836433,30565.0,30561.0,0.13632608]
[1609826697743,0.68787879,30583.0,30561.0,0.13632608]
[1609826697939,0.68787879,30583.0,30566.0,4.7291]
[1609826698341,0.68787879,30583.0,30561.0,0.1271]
[1609826698743,0.68787879,30583.0,30582.0,0.13632608]
[1609826699142,0.68787879,30583.0,30558.0,4.4572]
[1609826699743,0.10818,30587.0,30558.0,4.4572]
[1609826700745,0.13632608,30576.0,30575.0,0.13632608]
[1609826700943,0.27816608,30576.0,30575.0,0.13632608]
[1609826701544,0.14184,30576.0,30575.0,0.13632608]
[1609826702143,0.10818,30587.0,30575.0,0.13632608]
[1609826702346,0.10818,30587.0,30558.0,4.4572]
[1609826704447,0.2758,30610.0,30558.0,4.4572]
[1609826704646,0.2758,30610.0,30558.0,4.60496]
[1609826704847,0.2758,30610.0,30605.0,0.13632608]
[1609826705047,0.2758,30610.0,30558.0,4.60496]
[1609826705246,0.3835,30610.0,30558.0,4.60496]
[1609826706753,0.3835,30610.0,30583.0,0.13632608]
[1609826706953,0.3835,30610.0,30558.0,4.4572]
[1609826707351,0.1771,30609.0,30558.0,4.4572]
[1609826709554,0.13632608,30576.0,30567.0,0.13632608]
[1609826709753,0.23760608,30576.0,30567.0,0.13632608]
[1609826710956,0.23760608,30576.0,30492.0,2.0532691]
[1609826711156,0.23760608,30576.0,30516.0,5.2917]
[1609826711456,0.23760608,30576.0,30516.0,5.41346]
[1609826711655,0.13632608,30550.0,30516.0,5.41346]
[1609826711858,0.25949608,30550.0,30516.0,5.41346]
[1609826712057,0.12317,30550.0,30516.0,5.41346]
[1609826712457,0.12317,30550.0,30516.0,0.12176]
[1609826712657,0.12317,30550.0,30496.0,4.4022]
[1609826713659,0.13632608,30540.0,30524.0,0.13632608]
[1609826713860,0.23895608,30540.0,30492.0,2.0532691]
[1609826714760,0.10263,30540.0,30492.0,2.0532691]
[1609826715161,0.10263,30540.0,30486.0,2.04463843]
[1609826715661,0.10263,30540.0,30529.0,0.13632608]
[1609826716965,0.12317,30550.0,30529.0,0.13632608]
[1609826717162,0.2869,30559.0,30529.0,0.13632608]
[1609826717563,0.2869,30559.0,30548.0,0.13632608]
[1609826717763,0.2869,30559.0,30513.0,4.4556]
[1609826717963,0.40612,30559.0,30513.0,4.4556]
[1609826719065,0.40612,30559.0,30512.0,0.12593]
[1609826719264,0.40612,30559.0,30504.0,0.13226]
[1609826719665,0.40612,30559.0,30524.0,0.13632608]
[1609826720566,0.40612,30559.0,30498.0,4.6863]
[1609826721666,0.13632608,30545.0,30544.0,0.13632608]
[1609826721867,0.40612,30559.0,30544.0,0.13632608]
[1609826721868,0.13459,30546.0,30544.0,0.13632608]
[1609826722472,0.13459,30546.0,30511.0,0.11306]
[1609826723271,0.13459,30546.0,30497.0,0.09801]
[1609826723670,0.13459,30546.0,30514.0,0.13632608]
[1609826724876,0.13459,30546.0,30494.0,4.2527]
[1609826725772,0.13459,30546.0,30534.0,0.13632608]
[1609826726273,0.13459,30546.0,30518.0,4.5314]
[1609826726875,0.40612,30559.0,30518.0,4.5314]
[1609826727776,0.13632608,30534.0,30533.0,0.13632608]
[1609826727976,0.40612,30559.0,30533.0,0.13632608]
[1609826728176,0.09948,30538.0,30533.0,0.13632608]
[1609826728378,0.09948,30538.0,30518.0,4.5314]
[1609826729680,0.09948,30538.0,30537.0,0.13632608]
[1609826729882,0.09948,30538.0,30504.0,0.09815]
[1609826731080,0.09948,30538.0,30491.0,5.2852]
[1609826731681,0.13632608,30513.0,30507.0,0.13632608]
[1609826731881,0.12563,30528.0,30507.0,0.13632608]
[1609826732080,0.12563,30528.0,30491.0,5.2852]
[1609826733185,0.12563,30528.0,30488.0,0.10129]
[1609826733385,0.12563,30528.0,30485.0,2.06727769]
[1609826733786,0.13632608,30494.0,30491.0,0.13632608]
[1609826734587,0.12298,30515.0,30491.0,0.13632608]
[1609826735389,0.70626227,30524.0,30491.0,0.13632608]
[1609826735787,0.13632608,30504.0,30500.0,0.13632608]
[1609826736188,0.13632608,30504.0,30489.0,0.13673]
[1609826736588,0.13632608,30504.0,30482.0,0.12079]
[1609826737891,0.1161,30516.0,30489.0,0.13632608]
[1609826738089,0.1161,30516.0,30482.0,0.12079]
[1609826738490,5.3124,30492.0,30465.0,2.08141559]
[1609826738690,0.0969,30492.0,30465.0,2.08141559]
[1609826739090,3.8361,30473.0,30465.0,2.08141559]
[1609826739889,0.13632608,30466.0,30465.0,2.08141559]
[1609826740089,0.88552608,30466.0,30465.0,0.49081559]
[1609826740490,0.13632608,30466.0,30465.0,0.49081559]
[1609826740689,0.10923,30467.0,30465.0,0.49081559]
[1609826741899,0.11352,30475.0,30465.0,0.49081559]
[1609826742102,0.0969,30492.0,30465.0,0.49081559]
[1609826742797,0.0969,30492.0,30469.0,2.2671655]
[1609826743796,5.0647,30526.0,30459.0,4.5129]
[1609826743797,0.7015017,30513.0,30464.0,0.1078]
[1609826744196,0.13632608,30497.0,30489.0,0.13632608]
[1609826744796,0.12879,30500.0,30474.0,5.4744]
[1609826745398,0.12879,30500.0,30464.0,0.1078]
[1609826746198,0.12879,30500.0,30457.0,0.11827]
[1609826747100,0.12879,30500.0,30436.0,2.51353896]
[1609826748300,0.13632608,30477.0,30468.0,0.13632608]
[1609826748901,0.12092,30486.0,30436.0,2.51353896]
[1609826749601,0.12092,30486.0,30436.0,0.2806]
[1609826750300,0.13632608,30456.0,30454.0,0.13632608]
[1609826750503,0.12092,30486.0,30454.0,0.13632608]
[1609826750901,0.12092,30486.0,30453.0,0.14629]
[1609826752301,0.13632608,30481.0,30470.0,0.13632608]
[1609826752501,0.12092,30486.0,30470.0,0.13632608]
[1609826752902,0.12879,30500.0,30470.0,0.13632608]
[1609826753104,0.2847,30502.0,30470.0,0.13632608]
[1609826753302,0.49210702,30503.0,30470.0,0.13632608]
[1609826753505,0.49210702,30503.0,30471.0,0.0975]
[1609826753703,0.49210702,30503.0,30470.0,0.13632608]
[1609826753904,0.14813,30515.0,30469.0,0.14954]
[1609826754505,0.69900519,30509.0,30469.0,0.14954]
[1609826755105,0.69900519,30509.0,30508.0,0.13632608]
[1609826755508,0.13939,30539.0,30508.0,0.13632608]
[1609826756508,0.13939,30539.0,30505.0,0.14284]
[1609826756708,0.13898,30546.0,30505.0,0.14284]
[1609826757107,0.13898,30546.0,30534.0,0.13632608]
[1609826757307,0.13898,30546.0,30516.0,0.11735]
[1609826758509,0.13898,30546.0,30505.0,0.14284]
[1609826759212,0.13632608,30525.0,30505.0,0.14284]
[1609826760310,0.13632608,30525.0,30494.0,5.3234]
[1609826761115,0.13589,30535.0,30506.0,0.13632608]
[1609826761813,0.13589,30535.0,30494.0,5.3234]
[1609826762013,0.13589,30535.0,30491.0,0.10403]
[1609826762513,0.13589,30535.0,30480.0,2.02224142]
[1609826762913,0.13589,30535.0,30473.0,5.1318]
[1609826763616,0.13589,30535.0,30521.0,0.13632608]
[1609826764014,0.13589,30535.0,30497.0,0.1299]
[1609826765617,0.13589,30535.0,30521.0,0.13632608]
[1609826765816,0.13898,30546.0,30521.0,0.13632608]
[1609826766016,0.70199423,30547.0,30521.0,0.13632608]
[1609826767019,0.70175816,30549.0,30521.0,0.13632608]
[1609826767618,0.7021624,30556.0,30521.0,0.13632608]
[1609826767817,0.7021624,30556.0,30533.0,0.13632608]
[1609826768019,0.70211168,30558.0,30533.0,0.13632608]
[1609826768721,0.70208433,30559.0,30533.0,0.13632608]
[1609826769120,0.70208433,30559.0,30519.0,0.14042]
[1609826769320,0.83522433,30559.0,30519.0,0.14042]
[1609826770524,0.13314,30559.0,30519.0,0.14042]
[1609826770724,0.70197064,30561.0,30527.0,4.9178]
[1609826770923,0.70197064,30561.0,30527.0,5.05152]
[1609826771125,0.2846,30568.0,30527.0,5.05152]
[1609826771426,0.7032282,30569.0,30527.0,5.05152]
[1609826771926,0.70320469,30576.0,30527.0,5.05152]
[1609826772225,0.13632608,30554.0,30549.0,0.13632608]
[1609826773425,4.4591,30570.0,30527.0,0.13372]
[1609826774428,0.13632608,30552.0,30537.0,0.13632608]
[1609826775429,0.13632608,30552.0,30527.0,0.13372]
[1609826776028,0.13632608,30552.0,30521.0,4.603]
[1609826776229,0.0998,30557.0,30524.0,0.13632608]
[1609826776831,0.0998,30557.0,30521.0,4.603]
[1609826777032,0.803422,30557.0,30521.0,4.603]
[1609826777231,0.803422,30557.0,30519.0,0.14042]
[1609826777431,4.868122,30557.0,30499.0,4.4617]
[1609826777633,0.70410742,30551.0,30499.0,4.4617]
[1609826778032,0.70422526,30543.0,30499.0,4.4617]
[1609826778231,0.81928526,30543.0,30499.0,4.4617]
[1609826778433,0.70431967,30540.0,30500.0,0.13632608]
[1609826779737,0.7044295,30537.0,30500.0,0.13632608]
[1609826780336,0.7044295,30537.0,30505.0,0.13632608]
[1609826780337,0.13632608,30510.0,30505.0,0.13632608]
[1609826780537,0.12117,30522.0,30499.0,4.4617]
[1609826780937,0.12117,30522.0,30499.0,4.59408]
[1609826781639,0.70408514,30544.0,30499.0,4.59408]
[1609826782143,0.70439818,30547.0,30499.0,4.59408]
[1609826782342,0.70439818,30547.0,30514.0,0.13632608]
[1609826782743,0.7044336,30546.0,30514.0,0.13632608]
[1609826783642,0.86093093,30549.0,30514.0,0.13632608]
[1609826783643,0.70443656,30547.0,30514.0,0.13632608]
[1609826785046,0.70433371,30546.0,30514.0,0.13632608]
[1609826785444,0.82310371,30546.0,30514.0,0.13632608]
[1609826786447,0.13632608,30528.0,30527.0,0.13632608]
[1609826787148,0.82310371,30546.0,30527.0,0.13632608]
[1609826787348,0.82310371,30546.0,30508.0,0.14802]
[1609826787349,0.11877,30546.0,30516.0,0.11771]
[1609826789048,0.70478826,30550.0,30530.0,0.13632608]
[1609826789549,0.70476188,30554.0,30530.0,0.13632608]
[1609826789750,0.70476188,30554.0,30516.0,0.11771]
[1609826790552,0.70476188,30554.0,30517.0,3.9508]
[1609826790952,0.70476188,30554.0,30516.0,0.11771]
[1609826791552,0.70476188,30554.0,30508.0,0.14802]
[1609826791752,0.80306188,30554.0,30508.0,0.14802]
[1609826791952,0.80306188,30554.0,30501.0,5.4073]
[1609826792952,0.13632608,30502.0,30499.0,0.13238]
[1609826793153,0.13632608,30502.0,30464.0,0.49970549]
[1609826793354,4.54842608,30502.0,30464.0,0.49970549]
[1609826793555,4.54842608,30502.0,30491.0,2.09651666]
[1609826793955,4.4121,30502.0,30491.0,2.09651666]
[1609826794654,4.4121,30502.0,30491.0,1.74941666]
[1609826795057,0.13632608,30492.0,30491.0,1.74941666]
[1609826797761,0.13632608,30492.0,30458.0,2.31297415]
[1609826798664,0.13632608,30492.0,30455.0,3.9423]
[1609826798962,0.13632608,30476.0,30471.0,0.13632608]
[1609826799164,4.806,30499.0,30471.0,0.13632608]
[1609826799366,0.14991,30496.0,30471.0,0.13632608]
[1609826802967,0.13632608,30476.0,30471.0,0.13632608]
[1609826804973,0.13632608,30482.0,30471.0,0.13632608]
[1609826805175,0.14991,30496.0,30471.0,0.13632608]
[1609826805375,0.12816,30503.0,30471.0,0.22954608]
[1609826805574,0.49202906,30507.0,30471.0,0.22954608]
[1609826805774,0.49202906,30507.0,30471.0,0.09322]
[1609826805973,0.12587,30512.0,30471.0,0.09322]
[1609826806575,0.70541954,30516.0,30471.0,0.09322]
[1609826806976,0.70541954,30516.0,30494.0,0.13632608]
[1609826807781,0.70541954,30516.0,30494.0,0.27638608]
[1609826808380,0.49160986,30533.0,30494.0,0.27638608]
[1609826808381,0.70504164,30525.0,30494.0,0.27638608]
[1609826808979,0.13632608,30516.0,30515.0,0.13632608]
[1609826809180,0.09246,30532.0,30515.0,0.13632608]
[1609826809379,0.09246,30532.0,30511.0,0.09495]
[1609826810181,0.70561687,30536.0,30511.0,0.09495]
[1609826810383,5.4448,30533.0,30504.0,0.11416]
[1609826810781,5.4448,30533.0,30494.0,0.14006]
[1609826810982,0.13632608,30504.0,30500.0,0.13632608]
[1609826811581,0.13632608,30504.0,30482.0,2.09348301]
[1609826811983,0.13632608,30504.0,30482.0,4.0611]
[1609826813084,0.13632608,30483.0,30482.0,4.0611]
[1609826813284,0.13632608,30483.0,30479.0,0.13632608]
[1609826814686,0.09172,30498.0,30467.0,2.10545268]
[1609826815086,0.09172,30498.0,30482.0,0.13632608]
[1609826816188,0.09172,30498.0,30466.0,0.14773]
[1609826817088,0.09172,30498.0,30482.0,0.13632608]
[1609826819091,0.13632608,30483.0,30482.0,0.13632608]
[1609826821495,0.13632608,30483.0,30466.0,0.14773]
[1609826821496,0.49202903,30507.0,30466.0,0.14773]
[1609826821695,0.49202903,30507.0,30466.0,0.10178]
[1609826822596,0.70709754,30513.0,30466.0,0.10178]
[1609826822799,0.98232985,30521.0,30466.0,2.21066396]
[1609826823200,0.98232985,30521.0,30488.0,0.13632608]
[1609826823399,0.2754,30521.0,30488.0,0.13632608]
[1609826824199,0.2754,30521.0,30482.0,0.24455]
[1609826825502,0.13632608,30519.0,30517.0,0.13632608]
[1609826825903,0.70678678,30524.0,30487.0,0.0975]
[1609826826305,0.49169038,30528.0,30482.0,0.24455]
[1609826826505,0.49169038,30528.0,30497.0,3.746]
[1609826826705,0.49169038,30528.0,30497.0,3.88802]
[1609826827005,0.7065698,30529.0,30497.0,3.88802]
[1609826827205,0.7065698,30529.0,30497.0,0.14202]
[1609826827607,0.13632608,30500.0,30499.0,0.13632608]
[1609826829608,0.13632608,30500.0,30483.0,4.53]
[1609826830007,0.12667,30513.0,30483.0,4.53]
[1609826831511,0.12667,30513.0,30496.0,0.13632608]
[1609826832312,0.10477,30522.0,30496.0,0.13632608]
[1609826833013,0.70684713,30526.0,30496.0,0.13632608]
[1609826833515,0.13632608,30506.0,30496.0,0.13632608]
[1609826833915,0.13632608,30506.0,30489.0,0.12515]
[1609826834115,5.4462,30511.0,30489.0,0.12515]
[1609826834315,5.4462,30511.0,30482.0,0.14575]
[1609826834516,5.4462,30511.0,30471.0,4.0107]
[1609826835518,0.13632608,30477.0,30475.0,0.13632608]
[1609826838325,3.746,30499.0,30475.0,0.13632608]
[1609826839528,0.13632608,30476.0,30475.0,0.13632608]
[1609826840026,3.746,30499.0,30475.0,0.13632608]
[1609826840226,3.746,30499.0,30460.0,5.1779]
[1609826840426,0.10375,30504.0,30459.0,2.07178332]
[1609826840626,5.3202,30491.0,30459.0,2.21953332]
[1609826840827,0.11113,30498.0,30459.0,2.21953332]
[1609826841027,4.6011,30493.0,30459.0,2.21953332]
[1609826841228,0.11113,30498.0,30459.0,2.21953332]
[1609826841628,0.13632608,30460.0,30459.0,2.21953332]
[1609826842231,0.13632608,30460.0,30459.0,0.14775]
[1609826843329,5.1466,30476.0,30459.0,0.14775]
[1609826843532,0.11788,30487.0,30459.0,0.14775]
[1609826843731,0.70831432,30495.0,30459.0,0.14775]
[1609826844232,0.13632608,30485.0,30475.0,0.13632608]
[1609826846134,0.13632608,30491.0,30484.0,0.13632608]
[1609826846937,0.70831432,30495.0,30484.0,0.13632608]
[1609826847540,0.70885501,30519.0,30484.0,0.13632608]
[1609826847738,0.70885501,30519.0,30490.0,5.4871]
[1609826847937,0.70885501,30519.0,30490.0,5.62839]
[1609826848139,0.13632608,30516.0,30511.0,0.13632608]
[1609826848539,0.70866285,30525.0,30490.0,5.62839]
[1609826848939,2.55854644,30555.0,30490.0,5.62839]
[1609826848940,0.70857796,30533.0,30491.0,0.099]
[1609826849240,0.70857796,30533.0,30492.0,0.098]
[1609826849642,0.49159218,30534.0,30492.0,0.098]
[1609826849839,0.70849966,30537.0,30490.0,5.62839]
[1609826850139,0.13632608,30512.0,30509.0,0.13632608]
[1609826850339,0.70849966,30537.0,30509.0,0.13632608]
[1609826850640,0.70849966,30537.0,30509.0,0.28597608]
[1609826852244,0.13632608,30510.0,30509.0,0.28597608]
[1609826852443,0.70849966,30537.0,30509.0,0.28597608]
[1609826852844,0.70857189,30539.0,30509.0,0.28597608]
[1609826853746,0.70919012,30533.0,30509.0,0.14965]
[1609826853945,0.82475012,30533.0,30502.0,0.14606]
[1609826854348,0.82475012,30533.0,30508.0,0.13632608]
[1609826854547,0.70928112,30532.0,30502.0,0.14606]
[1609826854748,0.70928112,30532.0,30490.0,5.62839]
[1609826854946,0.0968,30531.0,30490.0,5.62839]
[1609826855148,0.70932872,30527.0,30490.0,0.14129]
[1609826855347,5.3547,30526.0,30480.0,5.3648]
[1609826855549,5.49157,30526.0,30480.0,5.3648]
[1609826855848,0.70934634,30522.0,30480.0,5.3648]
[1609826856248,0.70934634,30522.0,30489.0,0.13632608]
[1609826856649,0.86693508,30525.0,30489.0,0.13632608]
[1609826856650,0.70938449,30518.0,30489.0,0.13632608]
[1609826856948,0.85690449,30518.0,30489.0,0.13632608]
[1609826857148,0.14752,30518.0,30489.0,0.13632608]
[1609826857549,0.14752,30518.0,30491.0,0.7353]
[1609826857948,0.14752,30518.0,30489.0,0.13632608]
[1609826858149,0.14752,30518.0,30491.0,4.3661]
[1609826858349,0.14752,30518.0,30497.0,0.13632608]
[1609826860354,0.14752,30518.0,30501.0,0.13632608]
[1609826861156,0.70980875,30523.0,30501.0,0.13632608]
[1609826861558,0.70971675,30529.0,30501.0,0.13632608]
[1609826862157,0.70973098,30532.0,30501.0,0.13632608]
[1609826862356,0.70973098,30532.0,30511.0,0.13632608]
[1609826863359,0.11556,30533.0,30511.0,0.13632608]
[1609826863760,0.70968753,30534.0,30511.0,0.13632608]
[1609826864260,0.70968753,30534.0,30516.0,0.13632608]
[1609826865163,0.70960901,30538.0,30516.0,0.13632608]
[1609826866266,0.70960901,30538.0,30520.0,0.13632608]
[1609826868268,0.13632608,30521.0,30516.0,0.13632608]
[1609826868871,0.13632608,30521.0,30513.0,0.09565]
[1609826869268,0.13632608,30521.0,30497.0,3.7901]
[1609826869470,0.09455,30523.0,30497.0,3.7901]
[1609826870272,0.13632608,30498.0,30497.0,3.7901]
[1609826871672,0.09664,30509.0,30497.0,3.7901]
[1609826872074,0.71001382,30519.0,30497.0,3.7901]
[1609826872276,0.71001382,30519.0,30503.0,0.13632608]
[1609826872673,0.09455,30523.0,30503.0,0.13632608]
[1609826874275,0.70979635,30528.0,30516.0,0.13632608]
[1609826876281,0.13632608,30517.0,30516.0,0.13632608]
[1609826876678,0.13632608,30517.0,30510.0,0.11126]
[1609826876879,4.0341,30515.0,30494.0,0.2988]
[1609826877079,4.0341,30515.0,30482.0,4.6215]
[1609826877480,0.13632608,30517.0,30474.0,0.2762]
[1609826877687,5.3451,30501.0,30474.0,0.2762]
[1609826878093,5.3451,30501.0,30482.0,2.04619509]
[1609826878281,0.13632608,30483.0,30482.0,2.04619509]
[1609826878886,0.13632608,30483.0,30478.0,0.13632608]
[1609826882287,3.93,30492.0,30462.0,0.0969]
[1609826882487,3.93,30492.0,30461.0,2.00784872]
[1609826882686,0.13632608,30486.0,30483.0,0.13632608]
[1609826882887,0.13632608,30486.0,30462.0,0.11798]
[1609826883690,0.13,30501.0,30462.0,0.21488]
[1609826883889,0.2703,30507.0,30474.0,5.4439]
[1609826884092,0.10237,30508.0,30475.0,0.0985]
[1609826884292,0.71057211,30508.0,30475.0,0.0985]
[1609826884491,0.71057211,30508.0,30490.0,5.2783]
[1609826884691,0.71057211,30508.0,30507.0,0.13632608]
[1609826885494,0.71026469,30524.0,30507.0,0.13632608]
[1609826885893,0.71026469,30524.0,30508.0,0.6383]
[1609826886094,0.7102312,30534.0,30508.0,0.6383]
[1609826886696,0.7102312,30534.0,30518.0,0.13632608]
[1609826887894,4.7451,30520.0,30518.0,0.13632608]
[1609826888696,4.7451,30520.0,30495.0,0.1387]
[1609826888897,0.13632608,30519.0,30512.0,0.13632608]
[1609826889197,4.7451,30520.0,30495.0,0.1387]
[1609826889396,0.09733,30529.0,30495.0,0.1387]
[1609826889596,4.8747,30520.0,30495.0,0.1387]
[1609826889796,5.01484,30520.0,30495.0,0.1387]
[1609826890898,5.01484,30520.0,30514.0,0.13632608]
[1609826892701,5.01484,30520.0,30495.0,0.14113]
[1609826893303,5.01484,30520.0,30514.0,0.13632608]
[1609826895308,0.13632608,30515.0,30514.0,0.13632608]
[1609826897511,0.09733,30529.0,30507.0,4.2436]
[1609826897711,0.98093737,30535.0,30507.0,4.2436]
[1609826897912,0.70993737,30535.0,30507.0,4.2436]
[1609826898714,5.0604,30538.0,30507.0,4.2436]
[1609826899314,0.70974387,30539.0,30533.0,0.13632608]
[1609826899515,0.70974387,30539.0,30512.0,3.9184]
[1609826900114,0.60314387,30539.0,30512.0,3.9184]
[1609826900716,0.60314387,30539.0,30511.0,0.13332]
[1609826901116,0.13579,30543.0,30526.0,5.2428]
[1609826901915,0.13579,30543.0,30542.0,0.13632608]
[1609826902118,0.13579,30543.0,30542.0,0.71132608]
[1609826902315,0.13579,30543.0,30542.0,0.13632608]
[1609826902919,0.13579,30543.0,30542.0,4.95112608]
[1609826903819,0.86683642,30549.0,30542.0,4.95112608]
[1609826904022,0.86683642,30549.0,30542.0,4.8148]
[1609826904623,0.86683642,30549.0,30548.0,0.91822608]
[1609826904825,0.07062608,30555.0,30548.0,0.91822608]
[1609826905020,0.86654766,30557.0,30548.0,0.7819]
[1609826905423,0.98525866,30575.0,30548.0,0.7819]
[1609826906523,1.46448517,30577.0,30569.0,0.13632608]
[1609826906925,0.98261137,30580.0,30569.0,0.13632608]
[1609826907726,0.98250647,30581.0,30569.0,0.13632608]
[1609826908125,0.47921033,30588.0,30569.0,0.13632608]
[1609826908126,0.47916386,30579.0,30569.0,0.13632608]
[1609826908325,0.61508386,30579.0,30569.0,0.13632608]
[1609826908525,0.61508386,30579.0,30575.0,0.13632608]
[1609826908926,0.13592,30579.0,30575.0,0.13632608]
[1609826909726,0.98235449,30586.0,30575.0,0.13632608]
[1609826909930,0.9823045,30590.0,30575.0,0.13632608]
[1609826910527,0.9823045,30590.0,30581.0,0.13632608]
[1609826910726,0.9823045,30590.0,30556.0,0.14811]
[1609826910926,1.1137845,30590.0,30572.0,4.115]
[1609826912130,0.9823045,30590.0,30572.0,4.115]
[1609826912532,0.9823045,30590.0,30587.0,0.13632608]
[1609826912732,0.47788756,30593.0,30587.0,0.13632608]
[1609826912930,0.47788756,30593.0,30587.0,3.81622608]
[1609826914535,0.47788756,30593.0,30592.0,0.13632608]
[1609826914733,0.30938756,30593.0,30592.0,0.13632608]
[1609826915136,0.30938756,30593.0,30584.0,0.10567]
[1609826915736,3.6869,30597.0,30584.0,0.10567]
[1609826915935,3.6869,30597.0,30577.0,0.11633]
[1609826916135,3.80719,30597.0,30569.0,4.0833]
[1609826916536,3.90549,30597.0,30569.0,4.0833]
[1609826916737,0.21859,30597.0,30535.0,2.07527605]
[1609826916941,3.8932,30586.0,30547.0,4.9644]
[1609826917138,3.8932,30586.0,30561.0,0.13632608]
[1609826917339,3.9915,30586.0,30561.0,0.13632608]
[1609826917540,0.0983,30586.0,30561.0,0.13632608]
[1609826917941,4.5787,30572.0,30555.0,0.14588]
[1609826918141,0.1252,30579.0,30555.0,0.14588]
[1609826918342,5.3539,30563.0,30543.0,0.11412]
[1609826918542,0.14311,30571.0,30543.0,0.11412]
[1609826918742,4.1687,30557.0,30543.0,0.11412]
[1609826919142,0.13632608,30544.0,30543.0,0.11412]
[1609826919342,0.13632608,30544.0,30539.0,0.13632608]
[1609826919544,0.14311,30571.0,30539.0,0.13632608]
[1609826919942,0.7016,30568.0,30539.0,0.13632608]
[1609826920143,0.14311,30571.0,30539.0,0.13632608]
[1609826920345,4.5315,30565.0,30536.0,0.11751]
[1609826921144,4.5315,30565.0,30547.0,0.13632608]
[1609826921944,4.5315,30565.0,30526.0,0.09636]
[1609826923147,0.13632608,30547.0,30536.0,0.13632608]
[1609826923948,0.14471,30560.0,30528.0,0.0975]
[1609826924351,4.5315,30565.0,30528.0,0.0975]
[1609826924649,0.2946,30570.0,30528.0,0.0975]
[1609826925049,0.2946,30570.0,30533.0,4.8511]
[1609826925250,0.13632608,30560.0,30552.0,0.13632608]
[1609826926053,0.2946,30570.0,30552.0,0.13632608]
[1609826926252,0.2946,30570.0,30552.0,0.25017608]
[1609826927252,0.13632608,30564.0,30552.0,0.25017608]
[1609826927553,0.13632608,30564.0,30552.0,0.11385]
[1609826927753,0.13632608,30564.0,30533.0,4.94484]
[1609826928754,0.13632608,30564.0,30533.0,0.09374]
[1609826929155,0.13632608,30537.0,30533.0,0.09374]
[1609826929755,0.13632608,30537.0,30513.0,5.4106]
[1609826930155,0.13632608,30537.0,30500.0,2.00147695]
[1609826931157,5.2472,30541.0,30500.0,2.00147695]
[1609826931356,5.2472,30541.0,30500.0,2.10413695]
[1609826931757,0.13632608,30526.0,30517.0,0.13632608]
[1609826936868,5.2472,30541.0,30500.0,0.10266]
[1609826937067,5.2472,30541.0,30500.0,0.10146]
[1609826937867,5.2472,30541.0,30501.0,0.099]
[1609826938067,5.2472,30541.0,30500.0,0.10146]
[1609826938271,0.13632608,30508.0,30506.0,0.13632608]
[1609826939268,0.12785,30525.0,30506.0,0.13632608]
[1609826939668,3.707,30527.0,30506.0,0.13632608]
[1609826940268,0.13632608,30526.0,30513.0,0.13632608]
[1609826941270,0.13169,30543.0,30513.0,0.13632608]
[1609826941471,0.11271,30552.0,30512.0,0.14242]
[1609826942171,0.11271,30552.0,30530.0,0.13632608]
[1609826942172,0.13632608,30543.0,30530.0,0.13632608]
[1609826942873,0.11271,30552.0,30530.0,0.13632608]
[1609826944174,0.13632608,30533.0,30530.0,0.13632608]
[1609826944374,0.13632608,30533.0,30527.0,0.12475]
[1609826944777,0.13632608,30533.0,30512.0,0.14242]
[1609826946276,0.13632608,30518.0,30506.0,0.13632608]
[1609826946477,0.13632608,30518.0,30504.0,2.02259061]
[1609826946678,0.13632608,30518.0,30503.0,2.02829047]
[1609826947679,0.82282608,30518.0,30503.0,1.69679047]
[1609826948280,0.13632608,30504.0,30503.0,1.69679047]
[1609826948881,0.13632608,30504.0,30495.0,0.14885]
[1609826949080,0.13632608,30504.0,30479.0,2.25254507]
[1609826949483,4.3306,30493.0,30479.0,2.25254507]
[1609826949684,4.3306,30493.0,30472.0,0.50000027]
[1609826949883,0.09366,30509.0,30472.0,0.50000027]
[1609826950084,5.3621,30484.0,30472.0,0.50000027]
[1609826950285,0.13632608,30475.0,30472.0,0.50000027]
[1609826950685,4.4992,30473.0,30471.0,0.13875]
[1609826952289,0.13632608,30472.0,30471.0,0.13875]
[1609826952689,4.4992,30473.0,30471.0,0.13875]
[1609826954295,4.4992,30473.0,30472.0,0.13632608]
[1609826955295,0.13632608,30483.0,30472.0,0.13632608]
[1609826956396,0.13632608,30483.0,30473.0,0.0973]
[1609826956595,0.13632608,30483.0,30472.0,0.13632608]
[1609826957697,0.0978,30482.0,30473.0,0.0996]
[1609826958097,0.13632608,30483.0,30471.0,0.09965]
[1609826958298,0.0976,30499.0,30438.0,0.2884]
[1609826958497,4.5063,30470.0,30452.0,2.39622146]
[1609826958697,0.13632608,30453.0,30452.0,2.39622146]
[1609826959097,3.85532608,30453.0,30452.0,2.49472146]
[1609826959298,0.13632608,30453.0,30452.0,2.49472146]
[1609826959501,5.46882608,30453.0,30452.0,2.49472146]
[1609826959799,5.46882608,30453.0,30452.0,2.39622146]
[1609826960001,5.46882608,30453.0,30452.0,0.14178]
[1609826960402,0.23392608,30453.0,30452.0,0.14178]
[1609826960802,0.23392608,30453.0,30452.0,0.24098]
[1609826961002,0.92282608,30453.0,30452.0,0.24098]
[1609826961503,0.7865,30453.0,30452.0,0.24098]
[1609826961903,0.0976,30453.0,30452.0,0.24098]
[1609826962905,4.2386,30471.0,30452.0,0.24098]
[1609826963105,0.02173602,31940.0,30452.0,0.24098]
[1609826963304,5.1646,30492.0,30452.0,0.24098]
[1609826963805,0.0973,30481.0,30452.0,0.24098]
[1609826964206,5.3809,30475.0,30452.0,0.14178]
[1609826964405,5.3809,30475.0,30432.0,4.7229]
[1609826964905,0.13632608,30453.0,30452.0,0.13632608]
[1609826965507,5.3809,30475.0,30452.0,0.23602608]
[1609826965707,5.3809,30475.0,30452.0,0.35480608]
[1609826966508,5.3809,30475.0,30452.0,0.21848]
[1609826966710,5.3809,30475.0,30452.0,0.11878]
[1609826967008,0.13632608,30453.0,30452.0,0.11878]
[1609826967209,0.23442608,30453.0,30452.0,0.11878]
[1609826967809,0.23442608,30453.0,30452.0,0.21838]